bitfinex/quotes_BTCUSD_20250822
["timestamp","ask_amount","ask_price","bid_price","bid_amount"]
[1755897797265,0.02953053,117140.0,117130.0,0.48449475]
[1755897797471,0.02953053,117140.0,117130.0,0.93030853]
[1755897799299,0.02953053,117140.0,117130.0,0.92721853]
[1755897799495,0.02953053,117140.0,117130.0,0.93018853]
[1755897801344,0.02953053,117140.0,117130.0,0.93014853]
[1755897802189,0.03161053,117140.0,117130.0,0.92717853]
[1755897802982,0.03161053,117140.0,117130.0,0.76981853]
[1755897803203,0.03161053,117140.0,117130.0,0.92713853]
[1755897804887,0.03467053,117140.0,117130.0,0.32400475]
[1755897805097,0.03467053,117140.0,117130.0,0.47916475]
[1755897805501,0.03467053,117140.0,117130.0,0.48132475]
[1755897807379,0.03467053,117140.0,117130.0,0.45563275]
[1755897808483,0.60777066,117140.0,117130.0,0.17569]
[1755897808713,0.94777066,117140.0,117130.0,0.17569]
[1755897809334,0.97343066,117140.0,117130.0,0.17569]
[1755897809526,0.11936041,117140.0,117130.0,0.17898438]
[1755897809813,0.11630041,117140.0,117130.0,0.31062413]
[1755897810661,0.11730041,117140.0,117130.0,0.26173475]
[1755897811048,0.12026041,117140.0,117130.0,0.26173475]
[1755897813332,0.12026041,117140.0,117130.0,0.25957475]
[1755897813722,0.12026041,117140.0,117130.0,0.17269]
[1755897813941,0.12222907,117140.0,117130.0,0.17269]
[1755897819568,0.12026041,117140.0,117130.0,0.17681438]
[1755897822492,0.12026041,117140.0,117130.0,0.67848639]
[1755897822702,0.12026041,117140.0,117130.0,0.67635201]
[1755897824692,0.12026041,117140.0,117130.0,0.17468]
[1755897824895,0.12026041,117140.0,117130.0,0.67848639]
[1755897825134,0.12026041,117140.0,117130.0,0.67635201]
[1755897825354,0.12026041,117140.0,117130.0,0.17468]
[1755897825550,0.12026041,117140.0,117130.0,0.67848639]
[1755897825771,0.12026041,117140.0,117130.0,0.67635201]
[1755897826746,0.11730041,117140.0,117130.0,0.67635201]
[1755897828814,0.11522041,117140.0,117130.0,0.67635201]
[1755897829068,0.11522041,117140.0,117130.0,0.67955201]
[1755897829272,0.11522041,117140.0,117130.0,0.82620994]
[1755897829484,0.05619053,117140.0,117130.0,1.09470994]
[1755897829722,0.03053053,117140.0,117130.0,1.09470994]
[1755897830792,0.02953053,117140.0,117130.0,1.09470994]
[1755897831212,0.03053053,117140.0,117130.0,1.12036194]
[1755897831676,0.02953053,117140.0,117130.0,1.12036194]
[1755897831866,0.03053053,117140.0,117130.0,1.12236194]
[1755897832088,0.03053053,117140.0,117130.0,1.12536194]
[1755897833811,0.03053053,117140.0,117130.0,0.62368993]
[1755897834019,0.03053053,117140.0,117130.0,1.12536194]
[1755897837311,0.03053053,117140.0,117130.0,0.62368993]
[1755897837754,0.03053053,117140.0,117130.0,1.12536194]
[1755897842077,0.03053053,117140.0,117130.0,1.28204194]
[1755897842522,0.03053053,117140.0,117130.0,1.01354194]
[1755897847206,0.03053053,117140.0,117130.0,1.01346194]
[1755897848178,0.03053053,117140.0,117130.0,0.85366194]
[1755897848398,0.03256053,117140.0,117130.0,1.01022194]
[1755897848807,0.03053053,117140.0,117130.0,1.01341194]
[1755897850903,0.03053053,117140.0,117130.0,0.51173993]
[1755897851098,0.03053053,117140.0,117130.0,1.01341194]
[1755897851252,0.03053053,117140.0,117130.0,1.01333194]
[1755897853960,0.03555053,117140.0,117130.0,1.00811194]
[1755897854185,0.03555053,117140.0,117130.0,0.50643993]
[1755897854391,0.03555053,117140.0,117130.0,0.50858993]
[1755897854599,0.03053053,117140.0,117130.0,1.01026194]
[1755897854798,0.03053053,117140.0,117130.0,1.01345194]
[1755897855007,0.03053053,117140.0,117130.0,1.03055194]
[1755897855211,0.03053053,117140.0,117130.0,1.01345194]
[1755897855411,0.03256053,117140.0,117130.0,0.85382194]
[1755897855618,0.03555053,117140.0,117130.0,1.00811194]
[1755897855819,0.03555053,117140.0,117130.0,1.01026194]
[1755897856062,0.03256053,117140.0,117130.0,1.01026194]
[1755897856488,0.03053053,117140.0,117130.0,1.01026194]
[1755897856690,0.03053053,117140.0,117130.0,1.01345194]
[1755897857677,0.03053053,117140.0,117130.0,0.51177993]
[1755897857924,0.03053053,117140.0,117130.0,1.01345194]
[1755897858148,0.03053053,117140.0,117130.0,0.50858993]
[1755897858345,0.03256053,117140.0,117130.0,1.01026194]
[1755897858570,0.03256053,117140.0,117130.0,1.27876194]
[1755897858830,0.03555053,117140.0,117130.0,0.77708993]
[1755897859077,0.03555053,117140.0,117130.0,1.27876194]
[1755897859306,0.03256053,117140.0,117130.0,0.77708993]
[1755897859496,0.03053053,117140.0,117130.0,1.28195194]
[1755897859928,0.03256053,117140.0,117130.0,1.27876194]
[1755897860126,0.03555053,117140.0,117130.0,1.27876194]
[1755897861387,0.02529267,117140.0,117130.0,1.27876194]
[1755897861802,0.02230267,117140.0,117130.0,1.27876194]
[1755897862631,0.02230267,117140.0,117130.0,1.12232194]
[1755897862936,0.02230267,117140.0,117130.0,1.27860194]
[1755897863376,0.02529267,117140.0,117130.0,0.77692993]
[1755897863570,0.02529267,117140.0,117130.0,0.50627993]
[1755897863729,0.02529267,117140.0,117130.0,0.98229994]
[1755897864373,0.02027267,117140.0,117130.0,0.98763994]
[1755897866187,0.02230267,117140.0,117130.0,0.32649793]
[1755897866410,0.02529267,117140.0,117130.0,0.98221994]
[1755897867228,0.02529267,117140.0,117130.0,0.98436994]
[1755897868290,0.02230267,117140.0,117130.0,0.98436994]
[1755897871139,0.02027267,117140.0,117130.0,0.98436994]
[1755897871481,0.01199472,117140.0,117130.0,0.98436994]
[1755897871698,0.01001472,117140.0,117130.0,0.98436994]
[1755897872125,0.01199472,117140.0,117130.0,0.48269793]
[1755897872388,0.01199472,117140.0,117130.0,0.98436994]
[1755897875143,0.01199472,117140.0,117130.0,0.48269793]
[1755897875344,0.01199472,117140.0,117130.0,0.98436994]
[1755897876975,0.01522472,117140.0,117130.0,0.98436994]
[1755897877578,0.01199472,117140.0,117130.0,0.98436994]
[1755897877774,0.01199472,117140.0,117130.0,0.48269793]
[1755897878087,0.01522472,117140.0,117130.0,0.48269793]
[1755897878286,0.01522472,117140.0,117130.0,0.98436994]
[1755897878923,0.01522472,117140.0,117130.0,0.48269793]
[1755897879124,0.01522472,117140.0,117130.0,0.98436994]
[1755897879333,0.01522472,117140.0,117130.0,0.98221994]
[1755897880610,0.01522472,117140.0,117130.0,0.98420994]
[1755897880818,0.01522472,117140.0,117130.0,0.48054793]
[1755897881033,0.01522472,117140.0,117130.0,0.98221994]
[1755897881240,0.01522472,117140.0,117130.0,0.32434793]
[1755897881461,0.01522472,117140.0,117130.0,0.98189994]
[1755897881674,0.01522472,117140.0,117130.0,0.42045475]
[1755897881675,0.01719338,117140.0,117130.0,0.42045475]
[1755897882130,0.01719338,117140.0,117130.0,0.92212676]
[1755897886070,0.01719338,117140.0,117130.0,0.42045475]
[1755897886248,0.01719338,117140.0,117130.0,0.92212676]
[1755897886424,0.01719338,117140.0,117130.0,0.5073244]
[1755897886634,0.01719338,117140.0,117130.0,0.92212676]
[1755897887169,0.01719338,117140.0,117130.0,0.76624676]
[1755897887378,0.01719338,117140.0,117130.0,0.92204676]
[1755897889681,0.01719338,117140.0,117130.0,0.42037475]
[1755897889896,0.01719338,117140.0,117130.0,0.92204676]
[1755897890065,0.01719338,117140.0,117130.0,1.00891641]
[1755897890494,0.01719338,117140.0,117130.0,1.01090641]
[1755897891332,0.01719338,117140.0,117130.0,0.5092344]
[1755897891541,0.01719338,117140.0,117130.0,0.92403676]
[1755897895797,0.01719338,117140.0,117130.0,0.42236475]
[1755897896014,0.01719338,117140.0,117130.0,0.92403676]
[1755897898930,0.51886539,117140.0,117130.0,0.42037475]
[1755897899148,0.51689673,117140.0,117130.0,0.42037475]
[1755897899363,0.01522472,117140.0,117130.0,0.42037475]
[1755897899575,0.01719338,117140.0,117130.0,0.42037475]
[1755897900889,0.51886539,117140.0,117130.0,0.42037475]
[1755897901118,0.01522472,117140.0,117130.0,0.42037475]
[1755897901343,0.01719338,117140.0,117130.0,0.49766336]
[1755897902028,0.01719338,117140.0,117130.0,0.42037475]
[1755897902716,0.57789527,117140.0,117130.0,0.33349]
[1755897903059,0.57592661,117140.0,117130.0,0.33349]
[1755897903290,0.57592661,117140.0,117130.0,0.17769]
[1755897903786,0.60158461,117140.0,117130.0,0.17769]
[1755897904012,0.60058461,117140.0,117130.0,0.17269]
[1755897904235,0.75598461,117140.0,117130.0,0.17369]
[1755897904690,0.75598461,117140.0,117130.0,0.17269]
[1755897905172,0.2553126,117140.0,117130.0,0.17269]
[1755897905433,0.75698461,117140.0,117130.0,0.17269]
[1755897906826,0.2553126,117140.0,117130.0,0.17269]
[1755897907299,0.75698461,117140.0,117130.0,0.17269]
[1755897912242,0.2553126,117140.0,117130.0,0.17269]
[1755897912485,0.75375461,117140.0,117130.0,0.17465]
[1755897913168,0.59835461,117140.0,117130.0,0.17465]
[1755897916795,0.0966826,117140.0,117130.0,0.17465]
[1755897917025,0.60032327,117140.0,117130.0,0.17465]
[1755897917267,0.59835461,117140.0,117130.0,0.17465]
[1755897919179,0.0966826,117140.0,117130.0,0.17465]
[1755897919417,0.09865126,117140.0,117130.0,0.17465]
[1755897919636,0.60032327,117140.0,117130.0,0.17465]
[1755897919861,0.59835461,117140.0,117130.0,0.17465]
[1755897921562,0.60160461,117140.0,117130.0,0.17465]
[1755897921853,0.60160461,117140.0,117130.0,0.17269]
[1755897922963,0.0999326,117140.0,117130.0,0.17269]
[1755897923177,0.60357327,117140.0,117130.0,0.17465]
[1755897923381,0.60160461,117140.0,117130.0,0.17465]
[1755897925266,0.0999326,117140.0,117130.0,0.17465]
[1755897925470,0.60357327,117140.0,117130.0,0.17465]
[1755897925695,0.60160461,117140.0,117130.0,0.17465]
[1755897925928,0.0999326,117140.0,117130.0,0.17465]
[1755897926136,0.60357327,117140.0,117130.0,0.17465]
[1755897926343,0.60160461,117140.0,117130.0,0.17465]
[1755897930513,0.0966826,117140.0,117130.0,0.17465]
[1755897930741,0.60032327,117140.0,117130.0,0.17465]
[1755897930956,0.59835461,117140.0,117130.0,0.17465]
[1755897931359,0.0966826,117140.0,117130.0,0.17465]
[1755897931560,0.60353327,117140.0,117130.0,0.17465]
[1755897931777,0.60156461,117140.0,117130.0,0.17465]
[1755897932988,0.60156461,117140.0,117130.0,0.17269]
[1755897939914,0.0998926,117140.0,117130.0,0.17269]
[1755897940117,0.60353327,117140.0,117130.0,0.17269]
[1755897940295,0.60156461,117140.0,117130.0,0.17269]
[1755897949657,0.60156461,117140.0,117130.0,0.17478]
[1755897950090,0.60156461,117140.0,117130.0,0.17269]
[1755897950668,0.0998926,117140.0,117130.0,0.17269]
[1755897950879,0.60353327,117140.0,117130.0,0.17269]
[1755897951122,0.60156461,117140.0,117130.0,0.17269]
[1755897961034,0.980457,117140.0,117130.0,0.17269]
[1755897961252,1.13559822,117140.0,117130.0,0.17269]
[1755897961482,0.63392621,117140.0,117130.0,0.17269]
[1755897961694,1.13559822,117140.0,117130.0,0.17269]
[1755897962550,0.63392621,117140.0,117130.0,0.17269]
[1755897962759,1.13559822,117140.0,117130.0,0.17269]
[1755897962981,0.56566974,117140.0,117130.0,0.17269]
[1755897963199,1.22154175,117140.0,117130.0,0.17269]
[1755897963411,1.134657,117140.0,117130.0,0.17269]
[1755897964304,1.09576461,117140.0,117130.0,0.17269]
[1755897964728,1.09572461,117140.0,117130.0,0.17269]
[1755897967151,0.5940526,117140.0,117130.0,0.17269]
[1755897967362,1.09572461,117140.0,117130.0,0.17269]
[1755897968220,0.5940526,117140.0,117130.0,0.17269]
[1755897968417,1.09572461,117140.0,117130.0,0.17269]
[1755897969778,1.09251461,117140.0,117130.0,0.17479]
[1755897970646,1.03348473,117140.0,117130.0,0.17479]
[1755897971087,1.09251461,117140.0,117130.0,0.17479]
[1755897971767,1.09053461,117140.0,117130.0,0.17772]
[1755897972719,0.37567272,117140.0,117130.0,0.33172]
[1755897972930,0.01001472,117140.0,117130.0,0.48654395]
[1755897973145,0.01001472,117140.0,117130.0,0.98821596]
[1755897974276,0.00901472,117140.0,117130.0,0.98821596]
[1755897974495,0.00901472,117140.0,117130.0,0.99221596]
[1755897974717,0.01001472,117140.0,117130.0,0.48854395]
[1755897974902,0.01001472,117140.0,117130.0,0.99021596]
[1755897975112,0.01001472,117140.0,117130.0,0.99121596]
[1755897975113,0.00901472,117140.0,117130.0,0.99121596]
[1755897975539,0.00901472,117140.0,117130.0,1.01686596]
[1755897975964,0.00901472,117140.0,117130.0,0.51519395]
[1755897976334,0.00901472,117140.0,117130.0,0.96094306]
[1755897977164,0.01001472,117140.0,117130.0,0.51819395]
[1755897977365,0.01001472,117140.0,117130.0,0.96394306]
[1755897977587,0.01001472,117140.0,117130.0,0.98139208]
[1755897978109,0.01001472,117140.0,117130.0,0.95639208]
[1755897978929,0.01001472,117140.0,117130.0,0.51064297]
[1755897979249,0.01001472,117140.0,117130.0,0.95639208]
[1755897979457,0.01001472,117140.0,117130.0,0.93894306]
[1755897979663,0.01001472,117140.0,117130.0,0.93878306]
[1755897979870,0.01001472,117140.0,117130.0,0.49303395]
[1755897980073,0.01001472,117140.0,117130.0,0.78494306]
[1755897980288,0.01001472,117140.0,117130.0,0.93878306]
[1755897980909,0.01001472,117140.0,117130.0,0.49303395]
[1755897981114,0.01001472,117140.0,117130.0,0.93878306]
[1755897981555,0.01001472,117140.0,117130.0,0.87084386]
[1755897981763,0.01001472,117140.0,117130.0,0.84519386]
[1755897982626,0.01001472,117140.0,117130.0,0.39944475]
[1755897982855,0.01001472,117140.0,117130.0,0.84519386]
[1755897983733,0.01001472,117140.0,117130.0,0.39944475]
[1755897983974,0.01001472,117140.0,117130.0,0.88770344]
[1755897984855,0.01001472,117140.0,117130.0,0.44195433]
[1755897985272,0.01001472,117140.0,117130.0,0.88770344]
[1755897985758,0.01001472,117140.0,117130.0,0.90515246]
[1755897985971,0.01001472,117140.0,117130.0,0.45940335]
[1755897986192,0.01001472,117140.0,117130.0,0.93080146]
[1755897986401,0.01001472,117140.0,117130.0,0.48505235]
[1755897986615,0.01001472,117140.0,117130.0,0.93080146]
[1755897987258,0.01001472,117140.0,117130.0,0.48505235]
[1755897987472,0.01001472,117140.0,117130.0,0.93080146]
[1755897992144,0.01001472,117140.0,117130.0,0.48505235]
[1755897992357,0.01001472,117140.0,117130.0,0.93080146]
[1755897994647,0.01001472,117140.0,117130.0,0.48505235]
[1755897994880,0.01001472,117140.0,117130.0,0.93080146]
[1755897995111,0.01001472,117140.0,117130.0,0.48505235]
[1755897995569,0.01001472,117140.0,117130.0,0.93080146]
[1755897997876,0.01001472,117140.0,117130.0,0.48505235]
[1755897998083,0.01001472,117140.0,117130.0,0.93080146]
[1755897999605,0.01001472,117140.0,117130.0,0.48505235]
[1755897999824,0.01001472,117140.0,117130.0,0.93080146]
[1755898000461,0.01001472,117140.0,117130.0,0.48505235]
[1755898000720,0.01001472,117140.0,117130.0,0.93080146]
[1755898001417,0.00096154,117140.0,117130.0,0.93080146]
[1755898002583,0.00096154,117140.0,117130.0,0.48505235]
[1755898002789,0.00096154,117140.0,117130.0,0.93080146]
[1755898005918,0.00096154,117140.0,117130.0,0.48505235]
[1755898006097,0.00096154,117140.0,117130.0,0.93080146]
[1755898007156,0.00096154,117140.0,117130.0,0.48505235]
[1755898007369,0.00096154,117140.0,117130.0,0.93080146]
[1755898011281,0.00011667,117140.0,117130.0,0.93080146]
[1755898012458,0.00011667,117140.0,117130.0,0.98651983]
[1755898012695,0.00011667,117140.0,117130.0,0.48212235]
[1755898013119,0.00011667,117140.0,117130.0,0.98664983]
[1755898014204,0.00011667,117140.0,117130.0,0.48518235]
[1755898014402,0.00213667,117140.0,117130.0,0.98358983]
[1755898014757,0.00537667,117140.0,117130.0,0.82764983]
[1755898014981,0.00537667,117140.0,117130.0,0.98088983]
[1755898015190,0.00537667,117140.0,117130.0,0.98297983]
[1755898016702,0.00537667,117140.0,117130.0,0.48151235]
[1755898016898,0.00537667,117140.0,117130.0,0.98297983]
[1755898017750,0.00537667,117140.0,117130.0,0.81020081]
[1755898017911,0.00537667,117140.0,117130.0,0.46193333]
[1755898018114,0.00011667,117140.0,117130.0,0.98293983]
[1755898018364,0.00216866,117180.0,117140.0,0.01744902]
[1755898018602,0.00324,117170.0,117160.0,0.50146748]
[1755898018810,0.00526,117170.0,117160.0,0.74155223]
[1755898019015,0.00526,117170.0,117160.0,0.93920223]
[1755898019219,0.00526,117170.0,117160.0,0.43773475]
[1755898019425,0.50672748,117170.0,117160.0,0.48407292]
[1755898020096,0.00526,117170.0,117160.0,0.48407292]
[1755898020287,0.06428988,117170.0,117160.0,0.28453475]
[1755898020488,0.06625854,117170.0,117160.0,0.28453475]
[1755898020782,0.06428988,117170.0,117160.0,0.28453475]
[1755898020983,0.51109351,117170.0,117160.0,0.28453475]
[1755898021203,0.06528988,117170.0,117160.0,0.28453475]
[1755898021407,0.51109351,117170.0,117160.0,0.28453475]
[1755898021613,0.06628988,117170.0,117160.0,0.28453475]
[1755898021855,0.00726,117170.0,117160.0,0.44069475]
[1755898022282,0.00402,117170.0,117160.0,0.71118475]
[1755898022496,0.00402,117170.0,117160.0,0.78261323]
[1755898022712,0.002,117170.0,117160.0,0.78261323]
[1755898022913,0.00417,117170.0,117160.0,0.8204185]
[1755898023128,0.002,117170.0,117160.0,0.84096752]
[1755898023343,0.06269115,117180.0,117160.0,0.86661352]
[1755898023544,0.06269115,117180.0,117170.0,0.09025021]
[1755898023844,0.00583127,117180.0,117170.0,0.64081351]
[1755898024057,0.00583127,117180.0,117170.0,0.63744805]
[1755898024283,0.00583127,117180.0,117170.0,0.63943805]
[1755898024509,0.06486115,117180.0,117170.0,0.63943805]
[1755898024732,0.00583127,117180.0,117170.0,0.63943805]
[1755898024951,0.00583127,117180.0,117170.0,0.64043805]
[1755898025395,0.00068127,117180.0,117170.0,0.39248707]
[1755898025823,0.00285127,117180.0,117170.0,0.38938707]
[1755898026254,0.00068127,117180.0,117170.0,0.38938707]
[1755898026896,0.00285127,117180.0,117170.0,0.38938707]
[1755898027739,0.00068127,117180.0,117170.0,0.38938707]
[1755898028178,0.00068127,117180.0,117170.0,0.39248707]
[1755898030488,0.00583127,117180.0,117170.0,0.30495377]
[1755898030977,0.00583127,117180.0,117170.0,0.30296377]
[1755898031203,0.4516349,117180.0,117170.0,0.30296377]
[1755898033409,0.4516349,117180.0,117170.0,0.28551475]
[1755898035907,0.4516349,117180.0,117170.0,0.55401475]
[1755898036036,0.4516349,117180.0,117170.0,0.62503222]
[1755898037483,0.4516349,117180.0,117170.0,0.78215222]
[1755898037880,0.00583127,117180.0,117170.0,0.78215222]
[1755898038094,0.4516349,117180.0,117170.0,0.78215222]
[1755898039979,0.4516349,117180.0,117170.0,0.78230207]
[1755898040189,0.4516349,117180.0,117170.0,0.78246207]
[1755898040466,0.89743853,117180.0,117170.0,0.78246207]
[1755898040661,0.89743853,117180.0,117170.0,0.78231222]
[1755898042729,0.89743853,117180.0,117170.0,0.55401475]
[1755898042948,0.95646841,117180.0,117170.0,0.71129475]
[1755898047869,0.95646841,117180.0,117170.0,0.44279475]
[1755898051607,0.95646841,117180.0,117170.0,0.19863]
[1755898051812,0.95646841,117180.0,117170.0,0.35575]
[1755898054453,0.95646841,117180.0,117170.0,0.19863]
[1755898054648,0.95646841,117180.0,117170.0,0.35567]
[1755898054926,0.95646841,117180.0,117170.0,0.19863]
[1755898055165,1.11346841,117180.0,117170.0,0.19863]
[1755898059095,1.45346841,117180.0,117170.0,0.19863]
[1755898059315,1.47912041,117180.0,117170.0,0.19863]
[1755898060467,1.48012041,117180.0,117170.0,0.19863]
[1755898060691,1.47912041,117180.0,117170.0,0.19763]
[1755898061132,1.48012041,117180.0,117170.0,0.19763]
[1755898061579,0.95063714,117150.0,117140.0,0.10727964]
[1755898061797,0.50699351,117150.0,117140.0,0.24522475]
[1755898062002,0.50699351,117150.0,117140.0,0.41595475]
[1755898062226,0.51016351,117150.0,117140.0,0.41583475]
[1755898062458,0.51016351,117150.0,117140.0,0.41385475]
[1755898062880,0.51859393,117150.0,117140.0,0.25761475]
[1755898063313,0.51859393,117150.0,117140.0,0.41381475]
[1755898063526,0.51859393,117150.0,117140.0,0.26259475]
[1755898063737,0.96539756,117150.0,117140.0,0.17673]
[1755898064043,0.96539756,117150.0,117140.0,0.33285]
[1755898064227,0.96539756,117150.0,117140.0,0.32985]
[1755898064617,0.96539756,117150.0,117140.0,0.17573]
[1755898064830,0.96539756,117150.0,117140.0,0.32969]
[1755898065055,0.96439756,117150.0,117140.0,0.32869]
[1755898065482,1.30439756,117150.0,117140.0,0.17273]
[1755898066392,1.30539756,117150.0,117140.0,0.17473]
[1755898066649,1.46127756,117150.0,117140.0,0.17473]
[1755898066869,1.46027756,117150.0,117140.0,0.17273]
[1755898067102,1.46027756,117150.0,117140.0,0.17173]
[1755898071999,0.5686703,117150.0,117140.0,0.17173]
[1755898072260,1.52361789,117150.0,117140.0,0.17173]
[1755898072461,1.52361789,117150.0,117140.0,0.17073]
[1755898073319,1.52461789,117150.0,117140.0,0.17073]
[1755898076420,1.61150264,117150.0,117140.0,0.17073]
[1755898076631,1.63716164,117150.0,117140.0,0.17073]
[1755898083597,1.63616164,117150.0,117140.0,0.17073]
[1755898083801,1.63716164,117150.0,117140.0,0.17073]
[1755898084016,1.63816164,117150.0,117140.0,0.17073]
[1755898085531,0.89160726,117130.0,117110.0,0.15791]
[1755898085750,0.89160726,117130.0,117110.0,0.00323]
[1755898085751,1.1072858,117120.0,117110.0,0.00323]
[1755898085996,1.10531714,117120.0,117110.0,0.17598]
[1755898086803,1.10531714,117120.0,117110.0,0.17602813]
[1755898087032,1.10531714,117120.0,117110.0,0.17802813]
[1755898087487,1.10531714,117120.0,117110.0,0.17902813]
[1755898088888,1.10531714,117120.0,117110.0,0.17802813]
[1755898089062,1.10631714,117120.0,117110.0,0.18002813]
[1755898089280,1.16965747,117120.0,117110.0,0.18002813]
[1755898090112,1.16965747,117120.0,117110.0,0.17679813]
[1755898090113,1.17180747,117120.0,117110.0,0.17679813]
[1755898091174,1.17180747,117120.0,117110.0,0.17479813]
[1755898091815,1.17080747,117120.0,117110.0,0.17279813]
[1755898092035,1.17080747,117120.0,117110.0,0.17379813]
[1755898092249,1.17403747,117120.0,117110.0,0.17379813]
[1755898092725,1.17080747,117120.0,117110.0,0.17379813]
[1755898092934,1.17403747,117120.0,117110.0,0.17379813]
[1755898093146,1.17080747,117120.0,117110.0,0.17379813]
[1755898094026,1.51403747,117120.0,117110.0,0.17181813]
[1755898095107,1.53970047,117120.0,117110.0,0.17181813]
[1755898095748,0.64809321,117120.0,117110.0,0.17181813]
[1755898095972,1.53970047,117120.0,117110.0,0.17181813]
[1755898105606,1.62658522,117120.0,117110.0,0.17181813]
[1755898107135,1.62758522,117120.0,117110.0,0.17181813]
[1755898107549,1.62758522,117120.0,117110.0,0.17081813]
[1755898107840,1.62858522,117120.0,117110.0,0.17081813]
[1755898114494,2.24350425,117120.0,117110.0,0.17081813]
[1755898114714,0.65009321,117120.0,117110.0,0.17081813]
[1755898114925,1.58496374,117120.0,117110.0,0.17600813]
[1755898116219,2.09233917,117120.0,117110.0,0.17081813]
[1755898116459,1.47868108,117120.0,117110.0,0.17081813]
[1755898126575,1.47868108,117120.0,117110.0,0.17283813]
[1755898127001,1.47348108,117120.0,117110.0,0.17600813]
[1755898127249,0.58061288,117120.0,117110.0,0.17600813]
[1755898127461,1.47348108,117120.0,117110.0,0.17283813]
[1755898127672,1.47348108,117120.0,117110.0,0.17600813]
[1755898128145,1.55702003,117120.0,117110.0,0.17600813]
[1755898130664,1.47348108,117120.0,117110.0,0.17600813]
[1755898132223,0.58061288,117120.0,117110.0,0.17600813]
[1755898132434,1.4144512,117120.0,117110.0,0.17600813]
[1755898132642,1.3887882,117120.0,117110.0,0.17600813]
[1755898132819,1.44781808,117120.0,117110.0,0.17600813]
[1755898133818,1.44681808,117120.0,117110.0,0.17600813]
[1755898134368,1.44781808,117120.0,117110.0,0.17600813]
[1755898134960,1.44681808,117120.0,117110.0,0.17600813]
[1755898135180,1.44781808,117120.0,117110.0,0.17600813]
[1755898135394,1.44681808,117120.0,117110.0,0.17600813]
[1755898135814,1.44681808,117120.0,117110.0,0.17700813]
[1755898136034,1.44581808,117120.0,117110.0,0.17700813]
[1755898136250,1.44581808,117120.0,117110.0,0.17900813]
[1755898137098,1.10581808,117120.0,117110.0,0.17900813]
[1755898137397,0.05902988,117120.0,117110.0,0.26589288]
[1755898137597,0.50546398,117130.0,117110.0,0.3337252]
[1755898137817,0.4464341,117130.0,117120.0,0.24409249]
[1755898138029,0.4464341,117130.0,117120.0,0.43412377]
[1755898138234,0.4464341,117140.0,117120.0,0.41667475]
[1755898138440,0.56071798,117150.0,117120.0,0.46482587]
[1755898138676,0.56071798,117150.0,117130.0,0.01744902]
[1755898138891,0.5016881,117140.0,117130.0,0.18819902]
[1755898139101,0.5016881,117140.0,117130.0,0.34203902]
[1755898139307,0.5016881,117140.0,117130.0,0.34405902]
[1755898139513,0.5016881,117140.0,117130.0,0.49930478]
[1755898139938,0.56071798,117150.0,117130.0,0.49930478]
[1755898139939,0.05902988,117150.0,117130.0,0.49930478]
[1755898140142,0.5026881,117140.0,117130.0,0.50113478]
[1755898140401,0.44690391,117140.0,117130.0,0.50113478]
[1755898140841,0.50493379,117160.0,117130.0,0.50128478]
[1755898141054,0.44590391,117150.0,117140.0,0.09340149]
[1755898141266,0.05902988,117160.0,117140.0,0.31657664]
[1755898141473,0.05902988,117160.0,117150.0,0.15384]
[1755898141677,0.05902988,117160.0,117150.0,0.32968]
[1755898142089,0.05902988,117160.0,117150.0,0.355331]
[1755898142296,0.06314854,117160.0,117150.0,0.198341]
[1755898142502,0.06626854,117160.0,117150.0,0.43906575]
[1755898142721,0.95500448,117160.0,117150.0,0.43906575]
[1755898142929,0.95403582,117160.0,117150.0,0.43906575]
[1755898143548,0.060078,117160.0,117150.0,0.26272475]
[1755898143759,0.00301678,117160.0,117150.0,0.28056034]
[1755898143965,0.95385448,117160.0,117150.0,0.28056034]
[1755898144170,0.95288582,117160.0,117150.0,0.28056034]
[1755898144589,0.95288582,117160.0,117150.0,0.26272475]
[1755898145249,0.95503582,117160.0,117150.0,0.25957475]
[1755898145452,0.95815582,117160.0,117150.0,0.17072]
[1755898145658,0.066348,117160.0,117150.0,0.32452]
[1755898145865,0.96012448,117160.0,117150.0,0.17269]
[1755898146027,0.95815582,117160.0,117150.0,0.17269]
[1755898146226,0.95503582,117160.0,117150.0,0.17269]
[1755898146443,0.95815582,117160.0,117150.0,0.17269]
[1755898147254,0.063228,117160.0,117150.0,0.17269]
[1755898147454,0.06304666,117160.0,117150.0,0.20211514]
[1755898147684,0.50698191,117160.0,117150.0,0.19896514]
[1755898147884,0.95288582,117160.0,117150.0,0.19896514]
[1755898148076,0.95288582,117160.0,117150.0,0.17269]
[1755898148283,0.061078,117160.0,117150.0,0.17482401]
[1755898148475,0.95288582,117160.0,117150.0,0.17482401]
[1755898149596,0.061078,117160.0,117150.0,0.17482401]
[1755898149789,0.00204812,117160.0,117150.0,0.17482401]
[1755898149982,0.061078,117160.0,117150.0,0.21057051]
[1755898150190,0.95288582,117160.0,117150.0,0.2115865]
[1755898150387,0.95288582,117160.0,117150.0,0.17269]
[1755898150588,0.95288582,117160.0,117150.0,0.17482401]
[1755898150817,0.95503582,117160.0,117150.0,0.17482401]
[1755898151014,0.95503582,117160.0,117150.0,0.17269]
[1755898151211,0.063228,117160.0,117150.0,0.17269]
[1755898151413,0.06519666,117160.0,117150.0,0.17269]
[1755898151640,0.95700448,117160.0,117150.0,0.17269]
[1755898151854,0.95503582,117160.0,117150.0,0.17269]
[1755898152407,0.95815582,117160.0,117150.0,0.17072]
[1755898154006,0.066348,117160.0,117150.0,0.17072]
[1755898154301,0.96012448,117160.0,117150.0,0.17072]
[1755898154526,0.98380982,117160.0,117150.0,0.17072]
[1755898158417,1.32380982,117160.0,117150.0,0.17072]
[1755898162310,1.76971373,117160.0,117150.0,0.17072]
[1755898163550,1.32380982,117160.0,117150.0,0.17072]
[1755898167569,1.47840982,117160.0,117150.0,0.17072]
[1755898171378,1.92431373,117160.0,117150.0,0.17072]
[1755898172634,0.586602,117160.0,117150.0,0.17072]
[1755898172811,1.92431373,117160.0,117150.0,0.17072]
[1755898173946,0.586602,117160.0,117150.0,0.17072]
[1755898174365,1.92431373,117160.0,117150.0,0.17072]
[1755898177212,0.586602,117160.0,117150.0,0.17072]
[1755898177440,1.92431373,117160.0,117150.0,0.17072]
[1755898180397,0.586602,117160.0,117150.0,0.17072]
[1755898180610,1.9876326,117160.0,117150.0,0.17072]
[1755898189644,1.92431373,117160.0,117150.0,0.17072]
[1755898193758,0.586602,117160.0,117150.0,0.17072]
[1755898193986,1.92431373,117160.0,117150.0,0.17072]
[1755898194463,2.09238936,117160.0,117150.0,0.17072]
[1755898198751,2.09250936,117160.0,117150.0,0.17274]
[1755898200606,2.09250936,117160.0,117150.0,0.17072]
[1755898202832,2.09250936,117160.0,117130.0,0.00295]
[1755898203052,0.05902988,117130.0,117120.0,0.00295]
[1755898203261,0.05902988,117130.0,117120.0,0.00511]
[1755898203262,1.7206659,117130.0,117120.0,0.00511]
[1755898203477,1.71869724,117130.0,117120.0,0.17587]